[Event "Titled Tuesday Blitz January 03 Late 2023"]
[White "Kujawski, Adam"]
[Black "Kim, Yoon-Young"]
[WhiteFideId "1100920"]
[BlackFideId "30908779"]
[WhiteElo "2173"]
[BlackElo "2304"]
[Result "0-1"]
[Round "04"]
[TimeControl "180+2"]
[Date "2023.01.03"]
[WhiteClock "0:00:05"]
[BlackClock "0:00:30"]

1. e4 {[%clk 0:02:58]}  e5 {[%clk 0:03:00]} 2. Nf3 {[%clk 0:02:58]}  Nc6 {[%clk 0:02:58]} 3. Bb5 {[%clk 0:02:57]}  a6 {[%clk 0:02:58]} 4. Ba4 {[%clk 0:02:58]}  Nf6 {[%clk 0:02:58]} 5. O-O {[%clk 0:02:57]}  Be7 {[%clk 0:02:59]} 6. Re1 {[%clk 0:02:57]}  b5 {[%clk 0:02:59]} 7. Bb3 {[%clk 0:02:58]}  d6 {[%clk 0:02:59]} 8. c3 {[%clk 0:02:57]}  O-O {[%clk 0:02:59]} 9. h3 {[%clk 0:02:57]}  Nb8 {[%clk 0:02:58]} 10. d4 {[%clk 0:02:57]}  Nbd7 {[%clk 0:02:59]} 11. Nbd2 {[%clk 0:02:54]}  Bb7 {[%clk 0:02:59]} 12. Bc2 {[%clk 0:02:51]}  Re8 {[%clk 0:03:00]} 13. Nf1 {[%clk 0:02:47]}  Bf8 {[%clk 0:03:00]} 14. Ng3 {[%clk 0:02:45]}  g6 {[%clk 0:03:01]} 15. a4 {[%clk 0:02:33]}  Nb6 {[%clk 0:03:00]} 16. a5 {[%clk 0:02:24]}  Nbd7 {[%clk 0:03:00]} 17. b4 {[%clk 0:02:22]}  Bg7 {[%clk 0:02:54]} 18. dxe5 {[%clk 0:02:13]}  dxe5 {[%clk 0:02:53]} 19. Bb3 {[%clk 0:01:58]}  c5 {[%clk 0:02:43]} 20. Bg5 {[%clk 0:01:22]}  c4 {[%clk 0:02:38]} 21. Bc2 {[%clk 0:01:22]}  h6 {[%clk 0:02:34]} 22. Be3 {[%clk 0:01:20]}  Qc7 {[%clk 0:02:14]} 23. Qd2 {[%clk 0:01:19]}  Kh7 {[%clk 0:02:13]} 24. Rad1 {[%clk 0:01:19]}  Rad8 {[%clk 0:02:12]} 25. Qd6 {[%clk 0:01:18]}  Qc8 {[%clk 0:02:11]} 26. Nh2 {[%clk 0:00:48]}  Qa8 {[%clk 0:01:49]} 27. Ng4 {[%clk 0:00:32]}  Nxg4 {[%clk 0:01:07]} 28. hxg4 {[%clk 0:00:31]}  Qc8 {[%clk 0:01:02]} 29. g5 {[%clk 0:00:25]}  Bf8 {[%clk 0:00:56]} 30. Qd2 {[%clk 0:00:21]}  h5 {[%clk 0:00:48]} 31. Qe2 {[%clk 0:00:20]}  Bg7 {[%clk 0:00:47]} 32. Nxh5 {[%clk 0:00:20]}  gxh5 {[%clk 0:00:46]} 33. Qxh5+ {[%clk 0:00:21]}  Kg8 {[%clk 0:00:46]} 34. g3 {[%clk 0:00:13]}  Nf8 {[%clk 0:00:45]} 35. Bb6 {[%clk 0:00:09]}  Rxd1 {[%clk 0:00:44]} 36. Rxd1 {[%clk 0:00:10]}  Qa8 {[%clk 0:00:39]} 37. f3 {[%clk 0:00:05]}  Qc8 {[%clk 0:00:38]} 38. Rd6 {[%clk 0:00:04]}  Ng6 {[%clk 0:00:36]} 39. Rxg6 {[%clk 0:00:03]}  fxg6 {[%clk 0:00:37]} 40. Qxg6 {[%clk 0:00:03]}  Qe6 {[%clk 0:00:37]} 41. Qh5 {[%clk 0:00:03]}  Bc8 {[%clk 0:00:33]} 42. g6 {[%clk 0:00:03]}  Qh3 {[%clk 0:00:33]} 43. Qxh3 {[%clk 0:00:04]}  Bxh3 {[%clk 0:00:32]} 44. g4 {[%clk 0:00:04]}  Bh6 {[%clk 0:00:31]} 45. Kh2 {[%clk 0:00:05]}  Bf1 {[%clk 0:00:30]} 0-1


[Site "https://www.chess.com"]

[Event "Titled Tuesday Blitz January 03 Late 2023"]
[White "Ward, Ieuan C"]
[Black "Shuvalova, Polina"]
[WhiteFideId "406627"]
[BlackFideId "24171760"]
[WhiteElo "2028"]
[BlackElo "2484"]
[Result "0-1"]
[Round "04"]
[TimeControl "180+2"]
[Date "2023.01.03"]
[WhiteClock "0:01:23"]
[BlackClock "0:01:46"]

1. e4 {[%clk 0:03:00]}  e5 {[%clk 0:02:59]} 2. Nf3 {[%clk 0:02:59]}  Nc6 {[%clk 0:02:59]} 3. Bc4 {[%clk 0:02:56]}  Nf6 {[%clk 0:02:57]} 4. d3 {[%clk 0:02:55]}  Bc5 {[%clk 0:02:56]} 5. c3 {[%clk 0:02:55]}  O-O {[%clk 0:02:55]} 6. O-O {[%clk 0:02:54]}  Re8 {[%clk 0:02:55]} 7. Bb3 {[%clk 0:02:52]}  a5 {[%clk 0:02:54]} 8. Bg5 {[%clk 0:02:49]}  h6 {[%clk 0:02:54]} 9. Be3 {[%clk 0:02:45]}  Bf8 {[%clk 0:02:49]} 10. h3 {[%clk 0:02:43]}  d5 {[%clk 0:02:48]} 11. exd5 {[%clk 0:02:40]}  Nxd5 {[%clk 0:02:48]} 12. Bxd5 {[%clk 0:02:24]}  Qxd5 {[%clk 0:02:48]} 13. d4 {[%clk 0:02:25]}  e4 {[%clk 0:02:41]} 14. Nfd2 {[%clk 0:02:15]}  b5 {[%clk 0:02:40]} 15. Qb3 {[%clk 0:02:13]}  Be6 {[%clk 0:02:36]} 16. Qxd5 {[%clk 0:02:12]}  Bxd5 {[%clk 0:02:37]} 17. Na3 {[%clk 0:02:10]}  Reb8 {[%clk 0:02:30]} 18. c4 {[%clk 0:02:02]}  bxc4 {[%clk 0:02:29]} 19. Naxc4 {[%clk 0:02:02]}  Nb4 {[%clk 0:02:22]} 20. b3 {[%clk 0:01:56]}  a4 {[%clk 0:02:17]} 21. Bf4 {[%clk 0:01:48]}  Rb7 {[%clk 0:02:12]} 22. bxa4 {[%clk 0:01:35]}  Rxa4 {[%clk 0:01:56]} 23. a3 {[%clk 0:01:27]}  Nd3 {[%clk 0:01:47]} 24. Bg3 {[%clk 0:01:23]}  Bxc4 {[%clk 0:01:46]} 0-1


[Site "https://www.chess.com"]

[Event "Titled Tuesday Blitz January 03 Late 2023"]
[White "Graham, Nathaniel"]
[Black "Yashmetov, Mikhail"]
[WhiteFideId "2007983"]
[BlackFideId "24198900"]
[WhiteElo "2262"]
[BlackElo "2323"]
[Result "1-0"]
[Round "04"]
[TimeControl "180+2"]
[Date "2023.01.03"]
[WhiteClock "0:00:25"]
[BlackClock "0:00:04"]

1. e4 {[%clk 0:02:57]}  c5 {[%clk 0:02:59]} 2. Nf3 {[%clk 0:02:57]}  Nc6 {[%clk 0:03:00]} 3. d4 {[%clk 0:02:58]}  cxd4 {[%clk 0:03:00]} 4. Nxd4 {[%clk 0:02:58]}  Nf6 {[%clk 0:03:01]} 5. Nc3 {[%clk 0:02:59]}  e5 {[%clk 0:03:02]} 6. Ndb5 {[%clk 0:02:59]}  d6 {[%clk 0:03:02]} 7. Bg5 {[%clk 0:02:59]}  a6 {[%clk 0:03:03]} 8. Na3 {[%clk 0:02:59]}  b5 {[%clk 0:03:03]} 9. Nd5 {[%clk 0:02:59]}  Be7 {[%clk 0:03:04]} 10. Bxf6 {[%clk 0:02:59]}  Bxf6 {[%clk 0:03:05]} 11. c3 {[%clk 0:02:59]}  O-O {[%clk 0:03:05]} 12. Nc2 {[%clk 0:03:00]}  Bg5 {[%clk 0:03:05]} 13. Be2 {[%clk 0:03:00]}  Be6 {[%clk 0:03:05]} 14. Ncb4 {[%clk 0:02:57]}  Nxb4 {[%clk 0:02:49]} 15. Nxb4 {[%clk 0:02:58]}  Qd7 {[%clk 0:02:12]} 16. a4 {[%clk 0:02:42]}  Qb7 {[%clk 0:01:52]} 17. axb5 {[%clk 0:02:26]}  axb5 {[%clk 0:01:43]} 18. Rxa8 {[%clk 0:02:23]}  Rxa8 {[%clk 0:01:42]} 19. O-O {[%clk 0:02:22]}  Rd8 {[%clk 0:01:31]} 20. Qd3 {[%clk 0:02:03]}  Bc4 {[%clk 0:01:00]} 21. Qf3 {[%clk 0:02:00]}  Be6 {[%clk 0:00:56]} 22. Rd1 {[%clk 0:01:54]}  g6 {[%clk 0:00:50]} 23. Nd5 {[%clk 0:01:29]}  f5 {[%clk 0:00:31]} 24. exf5 {[%clk 0:01:14]}  Bxd5 {[%clk 0:00:19]} 25. Rxd5 {[%clk 0:00:50]}  Rf8 {[%clk 0:00:18]} 26. Rxb5 {[%clk 0:00:44]}  Qxf3 {[%clk 0:00:17]} 27. Bxf3 {[%clk 0:00:45]}  gxf5 {[%clk 0:00:17]} 28. Bd5+ {[%clk 0:00:43]}  Kg7 {[%clk 0:00:17]} 29. Rb7+ {[%clk 0:00:42]}  Kg6 {[%clk 0:00:18]} 30. g3 {[%clk 0:00:43]}  f4 {[%clk 0:00:14]} 31. Be4+ {[%clk 0:00:42]}  Kf6 {[%clk 0:00:14]} 32. Rxh7 {[%clk 0:00:40]}  Rb8 {[%clk 0:00:13]} 33. Rb7 {[%clk 0:00:39]}  Rxb7 {[%clk 0:00:09]} 34. Bxb7 {[%clk 0:00:39]}  Ke6 {[%clk 0:00:09]} 35. c4 {[%clk 0:00:36]}  Bd8 {[%clk 0:00:07]} 36. Bd5+ {[%clk 0:00:34]}  Kd7 {[%clk 0:00:07]} 37. gxf4 {[%clk 0:00:33]}  exf4 {[%clk 0:00:08]} 38. Kg2 {[%clk 0:00:33]}  Bf6 {[%clk 0:00:08]} 39. b4 {[%clk 0:00:32]}  Bc3 {[%clk 0:00:09]} 40. b5 {[%clk 0:00:32]}  Bd4 {[%clk 0:00:09]} 41. Kf3 {[%clk 0:00:32]}  Be5 {[%clk 0:00:09]} 42. h4 {[%clk 0:00:33]}  Bd4 {[%clk 0:00:08]} 43. h5 {[%clk 0:00:31]}  Ke7 {[%clk 0:00:08]} 44. Kxf4 {[%clk 0:00:29]}  Bxf2 {[%clk 0:00:09]} 45. h6 {[%clk 0:00:27]}  Kf6 {[%clk 0:00:08]} 46. h7 {[%clk 0:00:27]}  Kg7 {[%clk 0:00:09]} 47. Be4 {[%clk 0:00:27]}  Bd4 {[%clk 0:00:07]} 48. Kf3 {[%clk 0:00:27]}  Kh8 {[%clk 0:00:03]} 49. Bf5 {[%clk 0:00:27]}  Bb6 {[%clk 0:00:03]} 50. Ke4 {[%clk 0:00:28]}  Kg7 {[%clk 0:00:03]} 51. Kd5 {[%clk 0:00:28]}  Bc5 {[%clk 0:00:04]} 52. Kc6 {[%clk 0:00:27]}  Bd4 {[%clk 0:00:04]} 53. b6 {[%clk 0:00:27]}  Kf7 {[%clk 0:00:04]} 54. b7 {[%clk 0:00:25]} 1-0


[Site "https://www.chess.com"]

[Event "Titled Tuesday Blitz January 03 Late 2023"]
[White "Senthil, Maran K"]
[Black "Tanenbaum, Zachary"]
[WhiteFideId "25035681"]
[BlackFideId "2060850"]
[WhiteElo "2209"]
[BlackElo "2261"]
[Result "1-0"]
[Round "04"]
[TimeControl "180+2"]
[Date "2023.01.03"]
[WhiteClock "0:00:04"]
[BlackClock "0:00:02"]

1. d4 {[%clk 0:03:00]}  d5 {[%clk 0:02:59]} 2. c4 {[%clk 0:03:00]}  dxc4 {[%clk 0:03:00]} 3. e4 {[%clk 0:02:59]}  b5 {[%clk 0:02:59]} 4. a4 {[%clk 0:02:58]}  c6 {[%clk 0:03:00]} 5. axb5 {[%clk 0:02:59]}  cxb5 {[%clk 0:03:00]} 6. b3 {[%clk 0:02:59]}  e5 {[%clk 0:02:59]} 7. d5 {[%clk 0:02:57]}  Nf6 {[%clk 0:02:54]} 8. f3 {[%clk 0:02:52]}  Bc5 {[%clk 0:02:47]} 9. bxc4 {[%clk 0:02:48]}  Nxe4 {[%clk 0:02:44]} 10. fxe4 {[%clk 0:02:34]}  Qh4+ {[%clk 0:02:43]} 11. Kd2 {[%clk 0:02:30]}  Bxg1 {[%clk 0:02:14]} 12. Rxg1 {[%clk 0:02:28]}  Qf2+ {[%clk 0:02:13]} 13. Be2 {[%clk 0:02:28]}  Qd4+ {[%clk 0:02:13]} 14. Kc2 {[%clk 0:02:00]}  Qxa1 {[%clk 0:02:13]} 15. Ba3 {[%clk 0:01:30]}  Bd7 {[%clk 0:01:33]} 16. Qe1 {[%clk 0:01:00]}  Na6 {[%clk 0:00:50]} 17. Qg3 {[%clk 0:00:12]}  b4 {[%clk 0:00:37]} 18. Bb2 {[%clk 0:00:12]}  Qa4+ {[%clk 0:00:31]} 19. Kd2 {[%clk 0:00:12]}  O-O {[%clk 0:00:24]} 20. Qxe5 {[%clk 0:00:08]}  f6 {[%clk 0:00:24]} 21. Qd6 {[%clk 0:00:08]}  Rac8 {[%clk 0:00:19]} 22. e5 {[%clk 0:00:07]}  fxe5 {[%clk 0:00:17]} 23. Qxe5 {[%clk 0:00:08]}  Rf7 {[%clk 0:00:17]} 24. Rf1 {[%clk 0:00:08]}  Re8 {[%clk 0:00:16]} 25. Qd4 {[%clk 0:00:06]}  Rfe7 {[%clk 0:00:14]} 26. Bh5 {[%clk 0:00:05]}  Qa5 {[%clk 0:00:03]} 27. Rf7 {[%clk 0:00:04]}  Re2+ {[%clk 0:00:01]} 28. Bxe2 {[%clk 0:00:03]}  Rxe2+ {[%clk 0:00:01]} 29. Kxe2 {[%clk 0:00:04]}  Kxf7 {[%clk 0:00:02]} 30. Qxg7+ {[%clk 0:00:04]}  Ke8 {[%clk 0:00:02]} 31. Bf6 {[%clk 0:00:04]}  Bf5 {[%clk 0:00:02]} 32. Qe7# {[%clk 0:00:04]} 1-0


[Site "https://www.chess.com"]

[Event "Titled Tuesday Blitz January 03 Late 2023"]
[White "Adewumi, Tanitoluwa"]
[Black "Kosteniuk, Alexandra"]
[WhiteFideId "30966396"]
[BlackFideId "4128125"]
[WhiteElo "2283"]
[BlackElo "2535"]
[Result "1-0"]
[Round "04"]
[TimeControl "180+2"]
[Date "2023.01.03"]
[WhiteClock "0:00:18"]
[BlackClock "0:00:36"]

1. e4 {[%clk 0:02:58]}  c6 {[%clk 0:02:59]} 2. d4 {[%clk 0:02:54]}  d5 {[%clk 0:03:00]} 3. exd5 {[%clk 0:02:55]}  cxd5 {[%clk 0:03:00]} 4. Bd3 {[%clk 0:02:54]}  Nc6 {[%clk 0:02:59]} 5. c3 {[%clk 0:02:54]}  Nf6 {[%clk 0:02:59]} 6. h3 {[%clk 0:02:53]}  g6 {[%clk 0:02:59]} 7. Bf4 {[%clk 0:02:52]}  Bf5 {[%clk 0:02:57]} 8. Nf3 {[%clk 0:02:52]}  Bxd3 {[%clk 0:02:56]} 9. Qxd3 {[%clk 0:02:52]}  Bg7 {[%clk 0:02:56]} 10. O-O {[%clk 0:02:50]}  O-O {[%clk 0:02:57]} 11. Re1 {[%clk 0:02:49]}  Ne4 {[%clk 0:02:52]} 12. Nbd2 {[%clk 0:02:48]}  f5 {[%clk 0:02:52]} 13. Ng5 {[%clk 0:02:45]}  Qd7 {[%clk 0:02:48]} 14. f3 {[%clk 0:02:40]}  h6 {[%clk 0:02:40]} 15. fxe4 {[%clk 0:02:24]}  hxg5 {[%clk 0:02:37]} 16. exd5 {[%clk 0:02:15]}  gxf4 {[%clk 0:02:22]} 17. dxc6 {[%clk 0:02:13]}  bxc6 {[%clk 0:02:22]} 18. Nf3 {[%clk 0:02:04]}  Rab8 {[%clk 0:02:10]} 19. Re2 {[%clk 0:01:52]}  Qd5 {[%clk 0:02:00]} 20. b4 {[%clk 0:01:40]}  a5 {[%clk 0:01:50]} 21. a3 {[%clk 0:01:09]}  Rb7 {[%clk 0:01:33]} 22. Rae1 {[%clk 0:00:55]}  axb4 {[%clk 0:01:32]} 23. axb4 {[%clk 0:00:46]}  Re8 {[%clk 0:01:21]} 24. Re6 {[%clk 0:00:38]}  Ra7 {[%clk 0:01:01]} 25. Rxg6 {[%clk 0:00:35]}  Ra2 {[%clk 0:01:00]} 26. Re5 {[%clk 0:00:28]}  Qf7 {[%clk 0:00:48]} 27. Ree6 {[%clk 0:00:24]}  Rea8 {[%clk 0:00:40]} 28. Ne5 {[%clk 0:00:20]}  Qe8 {[%clk 0:00:39]} 29. Qxf5 {[%clk 0:00:19]}  Qf8 {[%clk 0:00:38]} 30. Rxg7+ {[%clk 0:00:17]}  Kxg7 {[%clk 0:00:35]} 31. Rg6+ {[%clk 0:00:18]}  Kh8 {[%clk 0:00:36]} 32. Qh5+ {[%clk 0:00:18]} 1-0


[Site "https://www.chess.com"]

[Event "Titled Tuesday Blitz January 03 Late 2023"]
[White "Dimitrov, Atanas"]
[Black "Ansh M Shah"]
[WhiteFideId "2901315"]
[BlackFideId "25033379"]
[WhiteElo "2269"]
[BlackElo "2171"]
[Result "1-0"]
[Round "04"]
[TimeControl "180+2"]
[Date "2023.01.03"]
[WhiteClock "0:00:46"]
[BlackClock "0:00:49"]

1. Nf3 {[%clk 0:02:58]}  Nf6 {[%clk 0:02:59]} 2. g3 {[%clk 0:02:57]}  g6 {[%clk 0:02:59]} 3. Bg2 {[%clk 0:02:58]}  Bg7 {[%clk 0:03:00]} 4. O-O {[%clk 0:02:58]}  O-O {[%clk 0:03:01]} 5. c4 {[%clk 0:02:59]}  c5 {[%clk 0:03:01]} 6. Nc3 {[%clk 0:02:53]}  Nc6 {[%clk 0:03:01]} 7. b3 {[%clk 0:02:51]}  b6 {[%clk 0:03:01]} 8. Bb2 {[%clk 0:02:50]}  Bb7 {[%clk 0:03:02]} 9. d4 {[%clk 0:02:50]}  cxd4 {[%clk 0:03:02]} 10. Nxd4 {[%clk 0:02:50]}  Rb8 {[%clk 0:03:00]} 11. Nc2 {[%clk 0:02:45]}  d6 {[%clk 0:02:46]} 12. e4 {[%clk 0:02:39]}  a6 {[%clk 0:02:45]} 13. Qe2 {[%clk 0:02:37]}  Nd7 {[%clk 0:02:41]} 14. Rfd1 {[%clk 0:02:36]}  Nf6 {[%clk 0:02:28]} 15. Rac1 {[%clk 0:02:35]}  Rc8 {[%clk 0:02:27]} 16. Ne3 {[%clk 0:02:34]}  Qc7 {[%clk 0:02:27]} 17. Ncd5 {[%clk 0:02:28]}  Qd8 {[%clk 0:02:25]} 18. Nxf6+ {[%clk 0:02:28]}  Bxf6 {[%clk 0:02:24]} 19. Bxf6 {[%clk 0:02:29]}  exf6 {[%clk 0:02:25]} 20. Qd2 {[%clk 0:02:20]}  b5 {[%clk 0:02:18]} 21. Qxd6 {[%clk 0:02:14]}  Qxd6 {[%clk 0:02:17]} 22. Rxd6 {[%clk 0:02:15]}  Kg7 {[%clk 0:02:10]} 23. f4 {[%clk 0:02:05]}  Nb4 {[%clk 0:02:04]} 24. a3 {[%clk 0:02:03]}  Nc6 {[%clk 0:01:52]} 25. c5 {[%clk 0:02:02]}  b4 {[%clk 0:01:49]} 26. axb4 {[%clk 0:01:54]}  Nxb4 {[%clk 0:01:50]} 27. Kf2 {[%clk 0:01:36]}  Rfd8 {[%clk 0:01:45]} 28. Rxd8 {[%clk 0:01:32]}  Rxd8 {[%clk 0:01:46]} 29. Ke2 {[%clk 0:01:31]}  Bc6 {[%clk 0:01:38]} 30. Nc4 {[%clk 0:01:26]}  f5 {[%clk 0:01:28]} 31. Nd6 {[%clk 0:01:13]}  fxe4 {[%clk 0:01:22]} 32. Rc4 {[%clk 0:01:06]}  a5 {[%clk 0:00:59]} 33. Bxe4 {[%clk 0:01:00]}  Bxe4 {[%clk 0:00:52]} 34. Rxe4 {[%clk 0:01:00]}  Rd7 {[%clk 0:00:51]} 35. g4 {[%clk 0:00:46]}  Rc7 {[%clk 0:00:50]} 36. Ne8+ {[%clk 0:00:45]}  Kf8 {[%clk 0:00:49]} 37. Nxc7 {[%clk 0:00:46]} 1-0


[Site "https://www.chess.com"]

[Event "Titled Tuesday Blitz January 03 Late 2023"]
[White "Vega Gutierrez, Sabrina"]
[Black "Volkov, Maksim"]
[WhiteFideId "2219026"]
[BlackFideId "54123070"]
[WhiteElo "2377"]
[BlackElo "2258"]
[Result "0-1"]
[Round "04"]
[TimeControl "180+2"]
[Date "2023.01.03"]
[WhiteClock "0:00:01"]
[BlackClock "0:01:28"]

1. e4 {[%clk 0:03:00]}  c5 {[%clk 0:02:56]} 2. Nf3 {[%clk 0:02:59]}  d6 {[%clk 0:02:56]} 3. d4 {[%clk 0:03:00]}  cxd4 {[%clk 0:02:57]} 4. Qxd4 {[%clk 0:03:01]}  Nc6 {[%clk 0:02:56]} 5. Bb5 {[%clk 0:03:00]}  Bd7 {[%clk 0:02:51]} 6. Bxc6 {[%clk 0:03:01]}  Bxc6 {[%clk 0:02:52]} 7. Nc3 {[%clk 0:03:01]}  e5 {[%clk 0:02:51]} 8. Qd3 {[%clk 0:03:00]}  Nf6 {[%clk 0:02:49]} 9. O-O {[%clk 0:03:00]}  Be7 {[%clk 0:02:49]} 10. Bg5 {[%clk 0:02:47]}  Nd7 {[%clk 0:02:27]} 11. Bxe7 {[%clk 0:02:43]}  Kxe7 {[%clk 0:02:28]} 12. Rfd1 {[%clk 0:02:39]}  Nc5 {[%clk 0:02:28]} 13. Qe3 {[%clk 0:02:33]}  f6 {[%clk 0:02:26]} 14. Nh4 {[%clk 0:02:02]}  g6 {[%clk 0:02:25]} 15. b4 {[%clk 0:01:58]}  Na4 {[%clk 0:02:11]} 16. Nxa4 {[%clk 0:01:37]}  Bxa4 {[%clk 0:02:12]} 17. Rd2 {[%clk 0:01:37]}  Qb6 {[%clk 0:02:02]} 18. Qh6 {[%clk 0:01:35]}  Kf7 {[%clk 0:02:01]} 19. Rad1 {[%clk 0:01:33]}  Rad8 {[%clk 0:02:01]} 20. a3 {[%clk 0:01:28]}  Qc6 {[%clk 0:02:00]} 21. Qe3 {[%clk 0:01:21]}  a6 {[%clk 0:01:58]} 22. f4 {[%clk 0:01:11]}  exf4 {[%clk 0:01:51]} 23. Qxf4 {[%clk 0:00:57]}  g5 {[%clk 0:01:51]} 24. Qf5 {[%clk 0:00:47]}  gxh4 {[%clk 0:01:51]} 25. Rf1 {[%clk 0:00:41]}  Qc3 {[%clk 0:01:48]} 26. Qh5+ {[%clk 0:00:34]}  Ke7 {[%clk 0:01:46]} 27. Rdf2 {[%clk 0:00:23]}  Rdf8 {[%clk 0:01:33]} 28. Qxh4 {[%clk 0:00:06]}  Bc6 {[%clk 0:01:33]} 29. Qh5 {[%clk 0:00:02]}  Qe5 {[%clk 0:01:32]} 30. Qh6 {[%clk 0:00:02]}  Rf7 {[%clk 0:01:30]} 31. Kh1 {[%clk 0:00:02]}  Bxe4 {[%clk 0:01:28]} 32. Re1 {[%clk 0:00:01]}  Bxg2+ {[%clk 0:01:28]} 0-1


[Site "https://www.chess.com"]

[Event "Titled Tuesday Blitz January 03 Late 2023"]
[White "Dzierzak, Radoslaw"]
[Black "Tregubov, Pavel V."]
[WhiteFideId "1161407"]
[BlackFideId "4115341"]
[WhiteElo "2220"]
[BlackElo "2553"]
[Result "0-1"]
[Round "04"]
[TimeControl "180+2"]
[Date "2023.01.03"]
[WhiteClock "0:00:19"]
[BlackClock "0:00:31"]

1. e4 {[%clk 0:03:00]}  e6 {[%clk 0:02:57]} 2. Nf3 {[%clk 0:02:59]}  d5 {[%clk 0:02:57]} 3. Nc3 {[%clk 0:02:59]}  Nf6 {[%clk 0:02:52]} 4. e5 {[%clk 0:02:59]}  Nfd7 {[%clk 0:02:52]} 5. Ne2 {[%clk 0:03:00]}  f6 {[%clk 0:02:48]} 6. d4 {[%clk 0:02:51]}  fxe5 {[%clk 0:02:33]} 7. dxe5 {[%clk 0:02:51]}  Be7 {[%clk 0:02:30]} 8. Nf4 {[%clk 0:02:47]}  Nc5 {[%clk 0:02:31]} 9. c4 {[%clk 0:02:15]}  Ne4 {[%clk 0:02:09]} 10. a3 {[%clk 0:02:09]}  O-O {[%clk 0:01:50]} 11. cxd5 {[%clk 0:01:59]}  Bc5 {[%clk 0:01:49]} 12. Be3 {[%clk 0:01:56]}  Rxf4 {[%clk 0:01:47]} 13. Bxf4 {[%clk 0:01:56]}  Bxf2+ {[%clk 0:01:44]} 14. Ke2 {[%clk 0:01:56]}  exd5 {[%clk 0:01:35]} 15. Be3 {[%clk 0:01:46]}  Bxe3 {[%clk 0:01:30]} 16. Kxe3 {[%clk 0:01:46]}  Nc6 {[%clk 0:01:26]} 17. Bd3 {[%clk 0:01:43]}  Bf5 {[%clk 0:01:18]} 18. Qb3 {[%clk 0:01:34]}  Kh8 {[%clk 0:01:08]} 19. Qxb7 {[%clk 0:01:23]}  Nxe5 {[%clk 0:00:54]} 20. Bxe4 {[%clk 0:00:54]}  Ng4+ {[%clk 0:00:51]} 21. Ke2 {[%clk 0:00:44]}  dxe4 {[%clk 0:00:43]} 22. Rhd1 {[%clk 0:00:23]}  exf3+ {[%clk 0:00:43]} 23. Qxf3 {[%clk 0:00:23]}  Qe8+ {[%clk 0:00:34]} 24. Kf1 {[%clk 0:00:20]}  Ne3+ {[%clk 0:00:33]} 25. Kg1 {[%clk 0:00:19]}  Bg4 {[%clk 0:00:31]} 0-1


[Site "https://www.chess.com"]

[Event "Titled Tuesday Blitz January 03 Late 2023"]
[White "Kaplan, Avi Harrison"]
[Black "Suvorov, Alexander"]
[WhiteFideId "30934559"]
[BlackFideId "12977063"]
[WhiteElo "2146"]
[BlackElo "2338"]
[Result "0-1"]
[Round "04"]
[TimeControl "180+2"]
[Date "2023.01.03"]
[WhiteClock "0:00:06"]
[BlackClock "0:00:52"]

1. Nf3 {[%clk 0:03:00]}  g6 {[%clk 0:02:55]} 2. g3 {[%clk 0:02:58]}  Bg7 {[%clk 0:02:54]} 3. Bg2 {[%clk 0:02:59]}  e5 {[%clk 0:02:54]} 4. d3 {[%clk 0:02:58]}  d5 {[%clk 0:02:50]} 5. O-O {[%clk 0:02:56]}  Ne7 {[%clk 0:02:50]} 6. c4 {[%clk 0:02:53]}  c6 {[%clk 0:02:33]} 7. cxd5 {[%clk 0:02:50]}  cxd5 {[%clk 0:02:34]} 8. Nc3 {[%clk 0:02:51]}  O-O {[%clk 0:02:33]} 9. Bg5 {[%clk 0:02:43]}  f6 {[%clk 0:02:33]} 10. Bd2 {[%clk 0:02:42]}  Nbc6 {[%clk 0:02:33]} 11. e4 {[%clk 0:02:40]}  Be6 {[%clk 0:02:29]} 12. Rc1 {[%clk 0:02:37]}  Rc8 {[%clk 0:02:25]} 13. Qe2 {[%clk 0:02:19]}  Qd7 {[%clk 0:02:19]} 14. a3 {[%clk 0:02:05]}  Rfd8 {[%clk 0:02:15]} 15. Rfd1 {[%clk 0:02:04]}  Bg4 {[%clk 0:02:13]} 16. h3 {[%clk 0:01:25]}  Nd4 {[%clk 0:02:08]} 17. Nxd4 {[%clk 0:01:08]}  Bxe2 {[%clk 0:02:07]} 18. Ndxe2 {[%clk 0:01:09]}  d4 {[%clk 0:02:03]} 19. Na2 {[%clk 0:01:09]}  Rxc1 {[%clk 0:01:55]} 20. Nexc1 {[%clk 0:00:53]}  Rc8 {[%clk 0:01:56]} 21. Kf1 {[%clk 0:00:52]}  Rc2 {[%clk 0:01:43]} 22. b3 {[%clk 0:00:46]}  Nc6 {[%clk 0:01:38]} 23. Ke2 {[%clk 0:00:43]}  Bf8 {[%clk 0:01:37]} 24. b4 {[%clk 0:00:34]}  a5 {[%clk 0:01:38]} 25. bxa5 {[%clk 0:00:30]}  Nxa5 {[%clk 0:01:36]} 26. Nb4 {[%clk 0:00:27]}  Bxb4 {[%clk 0:01:30]} 27. axb4 {[%clk 0:00:28]}  Nc6 {[%clk 0:01:30]} 28. Ke1 {[%clk 0:00:27]}  Qd6 {[%clk 0:01:28]} 29. b5 {[%clk 0:00:20]}  Nb4 {[%clk 0:01:28]} 30. Bf3 {[%clk 0:00:16]}  Rb2 {[%clk 0:00:56]} 31. Kf1 {[%clk 0:00:13]}  Qd7 {[%clk 0:00:55]} 32. Kg2 {[%clk 0:00:09]}  Qxb5 {[%clk 0:00:55]} 33. Be1 {[%clk 0:00:08]}  Nc2 {[%clk 0:00:52]} 34. Rd2 {[%clk 0:00:07]}  Nxe1+ {[%clk 0:00:52]} 35. Kf1 {[%clk 0:00:07]}  Rxd2 {[%clk 0:00:52]} 36. Kxe1 {[%clk 0:00:08]}  Qb2 {[%clk 0:00:51]} 37. Kf1 {[%clk 0:00:08]}  Qxc1+ {[%clk 0:00:51]} 38. Kg2 {[%clk 0:00:08]}  Qe1 {[%clk 0:00:51]} 39. h4 {[%clk 0:00:07]}  Qxf2+ {[%clk 0:00:51]} 40. Kh3 {[%clk 0:00:08]}  Qxf3 {[%clk 0:00:52]} 41. h5 {[%clk 0:00:07]}  gxh5 {[%clk 0:00:51]} 42. Kh4 {[%clk 0:00:06]}  Rh2# {[%clk 0:00:52]} 0-1


[Site "https://www.chess.com"]